[Event "Titled Tuesday Blitz April 25 Early 2023"]
[White "Toropov, Pavel"]
[Black "Smith, Garrett L"]
[WhiteFideId "24129178"]
[BlackFideId "2024829"]
[WhiteElo "2182"]
[BlackElo "2258"]
[Result "1-0"]
[Round "03"]
[TimeControl "180+2"]
[Date "2023.04.25"]
[WhiteClock "0:02:09"]
[BlackClock "0:00:54"]

1. e4 {[%clk 0:02:57]}  c5 {[%clk 0:03:00]} 2. Nf3 {[%clk 0:02:56]}  Nc6 {[%clk 0:03:00]} 3. Bb5 {[%clk 0:02:56]}  e6 {[%clk 0:03:00]} 4. Bxc6 {[%clk 0:02:55]}  bxc6 {[%clk 0:03:01]} 5. e5 {[%clk 0:02:55]}  f6 {[%clk 0:02:58]} 6. d3 {[%clk 0:02:54]}  fxe5 {[%clk 0:02:57]} 7. Nxe5 {[%clk 0:02:53]}  Nf6 {[%clk 0:02:57]} 8. O-O {[%clk 0:02:52]}  d6 {[%clk 0:02:56]} 9. Nc4 {[%clk 0:02:52]}  Be7 {[%clk 0:02:54]} 10. f4 {[%clk 0:02:50]}  O-O {[%clk 0:02:51]} 11. Nc3 {[%clk 0:02:48]}  Nd5 {[%clk 0:02:41]} 12. Qe2 {[%clk 0:02:43]}  Bf6 {[%clk 0:02:38]} 13. Bd2 {[%clk 0:02:43]}  Rb8 {[%clk 0:02:13]} 14. Rae1 {[%clk 0:02:42]}  Re8 {[%clk 0:02:10]} 15. Ne4 {[%clk 0:02:37]}  Be7 {[%clk 0:01:59]} 16. b3 {[%clk 0:02:33]}  Nf6 {[%clk 0:01:55]} 17. Ng5 {[%clk 0:02:30]}  Bf8 {[%clk 0:01:49]} 18. Bc3 {[%clk 0:02:28]}  h6 {[%clk 0:01:46]} 19. Nf3 {[%clk 0:02:25]}  Nd5 {[%clk 0:01:43]} 20. Bb2 {[%clk 0:02:25]}  Nxf4 {[%clk 0:01:41]} 21. Qf2 {[%clk 0:02:21]}  e5 {[%clk 0:01:37]} 22. Nfxe5 {[%clk 0:02:12]}  dxe5 {[%clk 0:01:34]} 23. Bxe5 {[%clk 0:02:12]}  Rxe5 {[%clk 0:00:54]} 24. Nxe5 {[%clk 0:02:09]} 1-0


[Site "https://www.chess.com"]

[Event "Titled Tuesday Blitz April 25 Early 2023"]
[White "Al-Tarboush, Ward"]
[Black "Putri, Regita Desyari"]
[WhiteFideId "7601450"]
[BlackFideId "7109083"]
[WhiteElo "2265"]
[BlackElo "1930"]
[Result "1-0"]
[Round "03"]
[TimeControl "180+2"]
[Date "2023.04.25"]
[WhiteClock "0:00:20"]
[BlackClock "0:00:01"]

1. e4 {[%clk 0:02:15]}  e5 {[%clk 0:02:59]} 2. Nf3 {[%clk 0:02:15]}  Nc6 {[%clk 0:02:58]} 3. Bb5 {[%clk 0:02:15]}  a6 {[%clk 0:02:58]} 4. Ba4 {[%clk 0:02:15]}  Nf6 {[%clk 0:02:54]} 5. O-O {[%clk 0:02:15]}  Be7 {[%clk 0:02:52]} 6. d3 {[%clk 0:02:13]}  b5 {[%clk 0:02:52]} 7. Bb3 {[%clk 0:02:13]}  O-O {[%clk 0:02:48]} 8. Nc3 {[%clk 0:02:11]}  d6 {[%clk 0:02:46]} 9. a3 {[%clk 0:02:11]}  Bg4 {[%clk 0:02:45]} 10. Be3 {[%clk 0:02:08]}  Rb8 {[%clk 0:02:27]} 11. h3 {[%clk 0:02:07]}  Bh5 {[%clk 0:02:25]} 12. Re1 {[%clk 0:02:05]}  Nd4 {[%clk 0:02:08]} 13. Bxd4 {[%clk 0:02:04]}  exd4 {[%clk 0:02:09]} 14. Nd5 {[%clk 0:02:04]}  c6 {[%clk 0:02:03]} 15. Nxf6+ {[%clk 0:02:03]}  Bxf6 {[%clk 0:02:03]} 16. g4 {[%clk 0:02:02]}  Bg6 {[%clk 0:02:02]} 17. Nd2 {[%clk 0:02:01]}  Bg5 {[%clk 0:01:41]} 18. Nf3 {[%clk 0:02:00]}  Bf6 {[%clk 0:01:40]} 19. Qd2 {[%clk 0:01:58]}  c5 {[%clk 0:01:32]} 20. Bd5 {[%clk 0:01:57]}  h6 {[%clk 0:01:26]} 21. Qf4 {[%clk 0:01:56]}  Re8 {[%clk 0:01:13]} 22. b3 {[%clk 0:01:55]}  Be5 {[%clk 0:01:10]} 23. Nxe5 {[%clk 0:01:55]}  dxe5 {[%clk 0:01:06]} 24. Qg3 {[%clk 0:01:55]}  Qg5 {[%clk 0:00:55]} 25. h4 {[%clk 0:01:54]}  Qf6 {[%clk 0:00:46]} 26. g5 {[%clk 0:01:54]}  hxg5 {[%clk 0:00:29]} 27. hxg5 {[%clk 0:01:55]}  Qf4 {[%clk 0:00:29]} 28. Kg2 {[%clk 0:01:51]}  Qxg3+ {[%clk 0:00:28]} 29. Kxg3 {[%clk 0:01:51]}  Kf8 {[%clk 0:00:28]} 30. f4 {[%clk 0:01:47]}  exf4+ {[%clk 0:00:26]} 31. Kxf4 {[%clk 0:01:48]}  Ke7 {[%clk 0:00:26]} 32. a4 {[%clk 0:01:46]}  b4 {[%clk 0:00:25]} 33. a5 {[%clk 0:01:47]}  Rh8 {[%clk 0:00:24]} 34. Rh1 {[%clk 0:01:46]}  Rxh1 {[%clk 0:00:11]} 35. Rxh1 {[%clk 0:01:47]}  Rb5 {[%clk 0:00:10]} 36. Ra1 {[%clk 0:01:48]}  Rb8 {[%clk 0:00:09]} 37. Bc4 {[%clk 0:01:48]}  Ra8 {[%clk 0:00:10]} 38. Rh1 {[%clk 0:01:48]}  Kd7 {[%clk 0:00:05]} 39. e5 {[%clk 0:01:47]}  Ke7 {[%clk 0:00:05]} 40. Bd5 {[%clk 0:01:42]}  Rd8 {[%clk 0:00:05]} 41. Bc4 {[%clk 0:01:43]}  Rb8 {[%clk 0:00:06]} 42. Bxa6 {[%clk 0:01:42]}  Ra8 {[%clk 0:00:06]} 43. Bb5 {[%clk 0:01:40]}  Rxa5 {[%clk 0:00:07]} 44. Ba4 {[%clk 0:01:40]}  Ra8 {[%clk 0:00:07]} 45. Bc6 {[%clk 0:01:38]}  Rc8 {[%clk 0:00:06]} 46. Bb5 {[%clk 0:01:37]}  Rb8 {[%clk 0:00:07]} 47. Ba4 {[%clk 0:01:37]}  Ra8 {[%clk 0:00:07]} 48. Rh2 {[%clk 0:01:32]}  Rb8 {[%clk 0:00:06]} 49. Re2 {[%clk 0:01:29]}  Ra8 {[%clk 0:00:06]} 50. Bc6 {[%clk 0:01:29]}  Rc8 {[%clk 0:00:05]} 51. Bd5 {[%clk 0:01:29]}  Rd8 {[%clk 0:00:06]} 52. Bc4 {[%clk 0:01:29]}  Rh8 {[%clk 0:00:06]} 53. e6 {[%clk 0:01:28]}  f6 {[%clk 0:00:06]} 54. gxf6+ {[%clk 0:01:27]}  gxf6 {[%clk 0:00:07]} 55. Rg2 {[%clk 0:01:27]}  Rh4+ {[%clk 0:00:06]} 56. Kg3 {[%clk 0:01:27]}  Rh6 {[%clk 0:00:07]} 57. Kf2 {[%clk 0:01:28]}  f5 {[%clk 0:00:04]} 58. Rg1 {[%clk 0:01:23]}  Kf6 {[%clk 0:00:04]} 59. Re1 {[%clk 0:01:23]}  Ke7 {[%clk 0:00:03]} 60. Ra1 {[%clk 0:01:24]}  Rh2+ {[%clk 0:00:03]} 61. Kg3 {[%clk 0:01:23]}  Rxc2 {[%clk 0:00:04]} 62. Ra7+ {[%clk 0:01:23]}  Kf6 {[%clk 0:00:05]} 63. Ra6 {[%clk 0:01:22]}  Ke7 {[%clk 0:00:05]} 64. Kf4 {[%clk 0:01:18]}  Rf2+ {[%clk 0:00:05]} 65. Ke5 {[%clk 0:01:08]}  Re2+ {[%clk 0:00:05]} 66. Kd5 {[%clk 0:01:09]}  f4 {[%clk 0:00:05]} 67. Ra7+ {[%clk 0:01:07]}  Kf6 {[%clk 0:00:05]} 68. Ra8 {[%clk 0:01:05]}  Kg5 {[%clk 0:00:03]} 69. Rf8 {[%clk 0:01:02]}  Bf5 {[%clk 0:00:03]} 70. Kd6 {[%clk 0:01:03]}  f3 {[%clk 0:00:03]} 71. Rg8+ {[%clk 0:00:49]}  Bg6 {[%clk 0:00:03]} 72. Bd5 {[%clk 0:00:43]}  f2 {[%clk 0:00:03]} 73. Bg2 {[%clk 0:00:43]}  Re1 {[%clk 0:00:03]} 74. e7 {[%clk 0:00:41]}  Kf6 {[%clk 0:00:04]} 75. Rf8+ {[%clk 0:00:36]}  Bf7 {[%clk 0:00:04]} 76. Bd5 {[%clk 0:00:34]}  Rxe7 {[%clk 0:00:03]} 77. Bg2 {[%clk 0:00:30]}  Re1 {[%clk 0:00:02]} 78. Bd5 {[%clk 0:00:26]}  Re7 {[%clk 0:00:02]} 79. Bg2 {[%clk 0:00:24]}  Kg7 {[%clk 0:00:03]} 80. Kxe7 {[%clk 0:00:23]}  Bxb3 {[%clk 0:00:02]} 81. Rxf2 {[%clk 0:00:22]}  Bg8 {[%clk 0:00:01]} 82. Be4 {[%clk 0:00:20]} 1-0


[Site "https://www.chess.com"]

[Event "Titled Tuesday Blitz April 25 Early 2023"]
[White "Tarnowska, Aleksandra"]
[Black "Elgersma, Onno"]
[WhiteFideId "1180967"]
[BlackFideId "1053531"]
[WhiteElo "1776"]
[BlackElo "2252"]
[Result "0-1"]
[Round "03"]
[TimeControl "180+2"]
[Date "2023.04.25"]
[WhiteClock "0:00:02"]
[BlackClock "0:00:22"]

1. e4 {[%clk 0:03:00]}  c6 {[%clk 0:02:55]} 2. d4 {[%clk 0:03:00]}  d5 {[%clk 0:02:52]} 3. Nc3 {[%clk 0:03:01]}  dxe4 {[%clk 0:02:52]} 4. Nxe4 {[%clk 0:03:02]}  Nf6 {[%clk 0:02:52]} 5. Nxf6+ {[%clk 0:03:03]}  exf6 {[%clk 0:02:53]} 6. Nf3 {[%clk 0:03:03]}  Bd6 {[%clk 0:02:54]} 7. Be3 {[%clk 0:03:04]}  O-O {[%clk 0:02:54]} 8. Qd2 {[%clk 0:03:04]}  Re8 {[%clk 0:02:55]} 9. O-O-O {[%clk 0:03:04]}  Be6 {[%clk 0:02:53]} 10. Kb1 {[%clk 0:03:03]}  b5 {[%clk 0:02:53]} 11. Bd3 {[%clk 0:02:53]}  Nd7 {[%clk 0:02:54]} 12. Nh4 {[%clk 0:02:32]}  Nb6 {[%clk 0:02:47]} 13. Nf5 {[%clk 0:02:19]}  a5 {[%clk 0:02:47]} 14. h4 {[%clk 0:01:36]}  a4 {[%clk 0:02:46]} 15. Rh3 {[%clk 0:01:25]}  Bf8 {[%clk 0:02:43]} 16. Rg3 {[%clk 0:01:21]}  Qd5 {[%clk 0:02:40]} 17. c4 {[%clk 0:00:51]}  Nxc4 {[%clk 0:02:31]} 18. Bxc4 {[%clk 0:00:19]}  Qxc4 {[%clk 0:02:32]} 19. Nxg7 {[%clk 0:00:17]}  Bxg7 {[%clk 0:02:14]} 20. Bh6 {[%clk 0:00:17]}  Qxa2+ {[%clk 0:02:14]} 21. Kc1 {[%clk 0:00:17]}  Qa1+ {[%clk 0:01:46]} 22. Kc2 {[%clk 0:00:17]}  Bf5+ {[%clk 0:01:18]} 23. Kc3 {[%clk 0:00:13]}  b4+ {[%clk 0:01:19]} 24. Kc4 {[%clk 0:00:10]}  Qa2+ {[%clk 0:01:18]} 25. b3 {[%clk 0:00:02]}  Be6+ {[%clk 0:01:17]} 26. d5 {[%clk 0:00:02]}  Bxd5+ {[%clk 0:01:16]} 27. Kd4 {[%clk 0:00:02]}  Re4+ {[%clk 0:01:16]} 28. Kc5 {[%clk 0:00:02]}  Ra5+ {[%clk 0:01:16]} 29. Kb6 {[%clk 0:00:02]}  Rb5+ {[%clk 0:01:16]} 30. Kc7 {[%clk 0:00:02]}  Re7+ {[%clk 0:01:15]} 31. Kd8 {[%clk 0:00:02]}  Qxd2 {[%clk 0:00:29]} 32. Rxg7+ {[%clk 0:00:02]}  Kh8 {[%clk 0:00:29]} 33. Rxd2 {[%clk 0:00:03]}  Ra7 {[%clk 0:00:23]} 34. Kc8 {[%clk 0:00:03]}  Be6+ {[%clk 0:00:21]} 35. Kd8 {[%clk 0:00:02]}  Rb8# {[%clk 0:00:22]} 0-1


[Site "https://www.chess.com"]

[Event "Titled Tuesday Blitz April 25 Early 2023"]
[White "Sailer, Mike"]
[Black "Sadovsky, Artem"]
[WhiteFideId "2012901"]
[BlackFideId "4155840"]
[WhiteElo "2109"]
[BlackElo "2314"]
[Result "1-0"]
[Round "03"]
[TimeControl "180+2"]
[Date "2023.04.25"]
[WhiteClock "0:00:26"]
[BlackClock "0:00:02"]

1. d4 {[%clk 0:03:00]}  g6 {[%clk 0:02:54]} 2. Nf3 {[%clk 0:02:59]}  Bg7 {[%clk 0:02:39]} 3. Bf4 {[%clk 0:02:59]}  d6 {[%clk 0:02:39]} 4. e3 {[%clk 0:02:54]}  Nd7 {[%clk 0:02:34]} 5. Be2 {[%clk 0:02:49]}  e5 {[%clk 0:02:23]} 6. Bg5 {[%clk 0:02:46]}  f6 {[%clk 0:02:17]} 7. Bh4 {[%clk 0:02:44]}  e4 {[%clk 0:02:05]} 8. Nfd2 {[%clk 0:02:42]}  d5 {[%clk 0:02:06]} 9. c4 {[%clk 0:02:40]}  c6 {[%clk 0:01:56]} 10. Nc3 {[%clk 0:02:38]}  Nb6 {[%clk 0:01:40]} 11. cxd5 {[%clk 0:02:32]}  cxd5 {[%clk 0:01:39]} 12. Qb3 {[%clk 0:02:23]}  Be6 {[%clk 0:01:33]} 13. Ndxe4 {[%clk 0:02:12]}  dxe4 {[%clk 0:01:08]} 14. Qxe6+ {[%clk 0:02:11]}  Qe7 {[%clk 0:01:09]} 15. Qxe7+ {[%clk 0:02:10]}  Nxe7 {[%clk 0:01:09]} 16. Nxe4 {[%clk 0:02:08]}  O-O {[%clk 0:01:08]} 17. Rc1 {[%clk 0:02:02]}  Ned5 {[%clk 0:01:08]} 18. a3 {[%clk 0:01:54]}  Rac8 {[%clk 0:00:51]} 19. Kd2 {[%clk 0:01:52]}  Rfd8 {[%clk 0:00:40]} 20. Rxc8 {[%clk 0:01:46]}  Rxc8 {[%clk 0:00:39]} 21. Rc1 {[%clk 0:01:45]}  Rxc1 {[%clk 0:00:23]} 22. Kxc1 {[%clk 0:01:45]}  f5 {[%clk 0:00:18]} 23. Nc5 {[%clk 0:01:40]}  f4 {[%clk 0:00:16]} 24. Bg5 {[%clk 0:01:16]}  h6 {[%clk 0:00:13]} 25. Bxf4 {[%clk 0:01:15]}  Nxf4 {[%clk 0:00:04]} 26. exf4 {[%clk 0:01:16]}  Bxd4 {[%clk 0:00:05]} 27. Nxb7 {[%clk 0:01:14]}  Bxf2 {[%clk 0:00:05]} 28. Nd8 {[%clk 0:00:51]}  Be3+ {[%clk 0:00:02]} 29. Kc2 {[%clk 0:00:50]}  Bxf4 {[%clk 0:00:03]} 30. h3 {[%clk 0:00:49]}  Bd6 {[%clk 0:00:02]} 31. b4 {[%clk 0:00:39]}  Nd7 {[%clk 0:00:01]} 32. Nc6 {[%clk 0:00:37]}  Ne5 {[%clk 0:00:01]} 33. Nxa7 {[%clk 0:00:33]}  g5 {[%clk 0:00:01]} 34. Bb5 {[%clk 0:00:25]}  Bb8 {[%clk 0:00:01]} 35. Nc6 {[%clk 0:00:25]}  Nxc6 {[%clk 0:00:02]} 36. Bxc6 {[%clk 0:00:26]}  Kf7 {[%clk 0:00:02]} 37. Kc3 {[%clk 0:00:26]} 1-0


[Site "https://www.chess.com"]

[Event "Titled Tuesday Blitz April 25 Early 2023"]
[White "Leenhouts, Koen"]
[Black "GregLeBarbare"]
[WhiteFideId "1008439"]
[WhiteElo "2409"]
[BlackElo "2171"]
[Result "1-0"]
[Round "03"]
[TimeControl "180+2"]
[Date "2023.04.25"]
[WhiteClock "0:00:25"]
[BlackClock "0:00:22"]

1. e4 {[%clk 0:03:00]}  e6 {[%clk 0:02:54]} 2. d4 {[%clk 0:02:58]}  d5 {[%clk 0:02:55]} 3. Nc3 {[%clk 0:02:56]}  Bb4 {[%clk 0:02:54]} 4. exd5 {[%clk 0:02:56]}  exd5 {[%clk 0:02:54]} 5. Bd3 {[%clk 0:02:57]}  Nc6 {[%clk 0:02:52]} 6. Ne2 {[%clk 0:02:55]}  Nge7 {[%clk 0:02:51]} 7. O-O {[%clk 0:02:54]}  Bf5 {[%clk 0:02:48]} 8. a3 {[%clk 0:02:48]}  Bxc3 {[%clk 0:02:46]} 9. bxc3 {[%clk 0:02:43]}  Bxd3 {[%clk 0:02:42]} 10. Qxd3 {[%clk 0:02:44]}  O-O {[%clk 0:02:41]} 11. a4 {[%clk 0:02:39]}  Qd7 {[%clk 0:02:29]} 12. a5 {[%clk 0:02:33]}  a6 {[%clk 0:02:28]} 13. Bf4 {[%clk 0:02:32]}  Nf5 {[%clk 0:02:16]} 14. Rfb1 {[%clk 0:02:31]}  Rab8 {[%clk 0:02:15]} 15. Bxc7 {[%clk 0:02:27]}  Qxc7 {[%clk 0:02:14]} 16. Qxf5 {[%clk 0:02:25]}  Rfd8 {[%clk 0:02:10]} 17. Qf4 {[%clk 0:02:14]}  Qd7 {[%clk 0:01:59]} 18. Ng3 {[%clk 0:02:09]}  Re8 {[%clk 0:01:55]} 19. Nf5 {[%clk 0:02:01]}  Re6 {[%clk 0:01:51]} 20. Ne3 {[%clk 0:01:36]}  Rbe8 {[%clk 0:01:45]} 21. h3 {[%clk 0:01:32]}  R8e7 {[%clk 0:01:38]} 22. Qf3 {[%clk 0:01:26]}  Rg6 {[%clk 0:01:26]} 23. Nxd5 {[%clk 0:01:17]}  Ree6 {[%clk 0:01:27]} 24. Re1 {[%clk 0:00:59]}  Rd6 {[%clk 0:01:24]} 25. Nb6 {[%clk 0:00:55]}  Qd8 {[%clk 0:01:21]} 26. Nc4 {[%clk 0:00:50]}  Rdf6 {[%clk 0:01:20]} 27. Qd5 {[%clk 0:00:43]}  Qc8 {[%clk 0:01:01]} 28. Nb6 {[%clk 0:00:34]}  Qf8 {[%clk 0:00:28]} 29. Qd7 {[%clk 0:00:30]}  Re6 {[%clk 0:00:27]} 30. Rxe6 {[%clk 0:00:26]}  Rxe6 {[%clk 0:00:23]} 31. d5 {[%clk 0:00:25]}  Rd6 {[%clk 0:00:22]} 32. dxc6 {[%clk 0:00:24]}  Rxd7 {[%clk 0:00:22]} 33. cxd7 {[%clk 0:00:25]}  Qd8 {[%clk 0:00:22]} 34. Re1 {[%clk 0:00:25]} 1-0


[Site "https://www.chess.com"]

[Event "Titled Tuesday Blitz April 25 Early 2023"]
[White "Christensen, Thomas"]
[Black "Bosnjak, Petar"]
[WhiteFideId "1403532"]
[BlackFideId "14532581"]
[WhiteElo "2177"]
[BlackElo "2227"]
[Result "0-1"]
[Round "03"]
[TimeControl "180+2"]
[Date "2023.04.25"]
[WhiteClock "0:00:03"]
[BlackClock "0:00:37"]

1. d4 {[%clk 0:03:00]}  d5 {[%clk 0:03:00]} 2. e4 {[%clk 0:03:00]}  dxe4 {[%clk 0:02:59]} 3. Nc3 {[%clk 0:03:00]}  Nf6 {[%clk 0:02:59]} 4. f3 {[%clk 0:02:59]}  exf3 {[%clk 0:02:59]} 5. Nxf3 {[%clk 0:03:00]}  Bf5 {[%clk 0:02:58]} 6. Ne5 {[%clk 0:02:59]}  e6 {[%clk 0:02:58]} 7. Qf3 {[%clk 0:02:59]}  c6 {[%clk 0:02:57]} 8. Bc4 {[%clk 0:02:57]}  Bg6 {[%clk 0:02:46]} 9. Nxg6 {[%clk 0:02:54]}  hxg6 {[%clk 0:02:46]} 10. Be3 {[%clk 0:02:48]}  Qc7 {[%clk 0:02:38]} 11. O-O-O {[%clk 0:02:46]}  Nbd7 {[%clk 0:02:37]} 12. h3 {[%clk 0:02:37]}  Bb4 {[%clk 0:02:29]} 13. Bf4 {[%clk 0:02:33]}  Bd6 {[%clk 0:02:28]} 14. Bxd6 {[%clk 0:02:30]}  Qxd6 {[%clk 0:02:29]} 15. g4 {[%clk 0:02:29]}  g5 {[%clk 0:02:27]} 16. Rhf1 {[%clk 0:02:24]}  O-O-O {[%clk 0:02:25]} 17. Ne4 {[%clk 0:02:21]}  Nxe4 {[%clk 0:02:25]} 18. Qxe4 {[%clk 0:02:22]}  Nf6 {[%clk 0:02:24]} 19. Qe5 {[%clk 0:02:14]}  b5 {[%clk 0:01:04]} 20. Be2 {[%clk 0:01:55]}  Rxh3 {[%clk 0:01:00]} 21. Qxg5 {[%clk 0:01:54]}  Ne4 {[%clk 0:01:01]} 22. Qxg7 {[%clk 0:01:45]}  Ng3 {[%clk 0:01:01]} 23. Rf2 {[%clk 0:01:27]}  Nxe2+ {[%clk 0:01:00]} 24. Rxe2 {[%clk 0:01:27]}  Qf4+ {[%clk 0:00:59]} 25. Kb1 {[%clk 0:01:25]}  Qxd4 {[%clk 0:00:59]} 26. Qxd4 {[%clk 0:01:02]}  Rxd4 {[%clk 0:00:58]} 27. Rf1 {[%clk 0:00:56]}  Rf3 {[%clk 0:00:55]} 28. Rh1 {[%clk 0:00:49]}  Rxg4 {[%clk 0:00:56]} 29. b3 {[%clk 0:00:47]}  Kc7 {[%clk 0:00:55]} 30. Rh8 {[%clk 0:00:46]}  b4 {[%clk 0:00:53]} 31. Rd2 {[%clk 0:00:45]}  Rg1+ {[%clk 0:00:50]} 32. Kb2 {[%clk 0:00:45]}  Rff1 {[%clk 0:00:49]} 33. c4 {[%clk 0:00:38]}  Rb1+ {[%clk 0:00:46]} 34. Kc2 {[%clk 0:00:38]}  Rgc1+ {[%clk 0:00:46]} 35. Kd3 {[%clk 0:00:38]}  Rd1 {[%clk 0:00:47]} 36. Re8 {[%clk 0:00:27]}  Rxd2+ {[%clk 0:00:46]} 37. Kxd2 {[%clk 0:00:28]}  Rf1 {[%clk 0:00:44]} 38. Re7+ {[%clk 0:00:23]}  Kb6 {[%clk 0:00:43]} 39. c5+ {[%clk 0:00:18]}  Kxc5 {[%clk 0:00:44]} 40. Rxa7 {[%clk 0:00:19]}  e5 {[%clk 0:00:42]} 41. Re7 {[%clk 0:00:17]}  Kd6 {[%clk 0:00:41]} 42. Rb7 {[%clk 0:00:17]}  c5 {[%clk 0:00:41]} 43. Kd3 {[%clk 0:00:17]}  f5 {[%clk 0:00:38]} 44. Kc4 {[%clk 0:00:16]}  Rc1+ {[%clk 0:00:38]} 45. Kb5 {[%clk 0:00:16]}  f4 {[%clk 0:00:37]} 46. Rb8 {[%clk 0:00:12]}  f3 {[%clk 0:00:37]} 47. Rd8+ {[%clk 0:00:12]}  Ke6 {[%clk 0:00:37]} 48. Re8+ {[%clk 0:00:10]}  Kd5 {[%clk 0:00:37]} 49. Rd8+ {[%clk 0:00:08]}  Ke4 {[%clk 0:00:38]} 50. Rf8 {[%clk 0:00:03]}  Ke3 {[%clk 0:00:38]} 51. Kc6 {[%clk 0:00:03]}  e4 {[%clk 0:00:37]} 0-1


[Site "https://www.chess.com"]

[Event "Titled Tuesday Blitz April 25 Early 2023"]
[White "Wimalasuriya, Kasun M."]
[Black "Vovk, Orest"]
[WhiteFideId "9906789"]
[BlackFideId "14113490"]
[WhiteElo "2158"]
[BlackElo "2215"]
[Result "0-1"]
[Round "03"]
[TimeControl "180+2"]
[Date "2023.04.25"]
[WhiteClock "0:01:41"]
[BlackClock "0:01:38"]

1. d4 {[%clk 0:02:56]}  e5 {[%clk 0:02:58]} 2. dxe5 {[%clk 0:02:56]}  Nc6 {[%clk 0:02:58]} 3. Nf3 {[%clk 0:02:56]}  Qe7 {[%clk 0:02:58]} 4. Qd5 {[%clk 0:02:54]}  h6 {[%clk 0:02:56]} 5. c3 {[%clk 0:02:50]}  g5 {[%clk 0:02:56]} 6. h4 {[%clk 0:02:42]}  g4 {[%clk 0:02:56]} 7. Nfd2 {[%clk 0:02:42]}  Nxe5 {[%clk 0:02:55]} 8. Nc4 {[%clk 0:02:39]}  Bg7 {[%clk 0:02:48]} 9. Nxe5 {[%clk 0:02:38]}  Bxe5 {[%clk 0:02:47]} 10. g3 {[%clk 0:02:37]}  Nf6 {[%clk 0:02:47]} 11. Qd3 {[%clk 0:02:35]}  d5 {[%clk 0:02:46]} 12. Bg2 {[%clk 0:02:35]}  c6 {[%clk 0:02:46]} 13. Nd2 {[%clk 0:02:32]}  b6 {[%clk 0:02:44]} 14. O-O {[%clk 0:02:32]}  a5 {[%clk 0:02:44]} 15. Re1 {[%clk 0:02:32]}  Ba6 {[%clk 0:02:43]} 16. Qc2 {[%clk 0:02:32]}  O-O-O {[%clk 0:02:41]} 17. e4 {[%clk 0:02:30]}  d4 {[%clk 0:02:41]} 18. cxd4 {[%clk 0:02:26]}  Bxd4 {[%clk 0:02:39]} 19. Qxc6+ {[%clk 0:02:24]}  Qc7 {[%clk 0:02:39]} 20. Qa4 {[%clk 0:02:17]}  Qxg3 {[%clk 0:02:30]} 21. Qxd4 {[%clk 0:02:14]}  Qxg2+ {[%clk 0:02:30]} 22. Kxg2 {[%clk 0:02:12]}  Rxd4 {[%clk 0:02:31]} 23. e5 {[%clk 0:02:11]}  Nd5 {[%clk 0:02:25]} 24. Nb3 {[%clk 0:02:11]}  Nf4+ {[%clk 0:02:20]} 25. Kg3 {[%clk 0:01:57]}  Nh5+ {[%clk 0:02:12]} 26. Kg2 {[%clk 0:01:57]}  Bb7+ {[%clk 0:02:09]} 27. Kg1 {[%clk 0:01:55]}  Rd3 {[%clk 0:02:05]} 28. Be3 {[%clk 0:01:55]}  g3 {[%clk 0:02:00]} 29. Rac1+ {[%clk 0:01:54]}  Kb8 {[%clk 0:01:59]} 30. Bxb6 {[%clk 0:01:54]}  Rf3 {[%clk 0:01:44]} 31. Rc3 {[%clk 0:01:46]}  gxf2+ {[%clk 0:01:42]} 32. Bxf2 {[%clk 0:01:45]}  Rg8+ {[%clk 0:01:42]} 33. Kf1 {[%clk 0:01:45]}  Ba6+ {[%clk 0:01:42]} 34. Re2 {[%clk 0:01:43]}  Ng3+ {[%clk 0:01:40]} 35. Kg2 {[%clk 0:01:41]}  Rxc3 {[%clk 0:01:38]} 0-1


[Site "https://www.chess.com"]

[Event "Titled Tuesday Blitz April 25 Early 2023"]
[White "Prado, Alexandra"]
[Black "Postnikov, Daniil"]
[WhiteFideId "3301346"]
[BlackFideId "4166329"]
[WhiteElo "1759"]
[BlackElo "2261"]
[Result "0-1"]
[Round "03"]
[TimeControl "180+2"]
[Date "2023.04.25"]
[WhiteClock "0:00:02"]
[BlackClock "0:00:39"]

1. e4 {[%clk 0:03:00]}  e6 {[%clk 0:03:00]} 2. Nf3 {[%clk 0:02:59]}  d5 {[%clk 0:03:00]} 3. e5 {[%clk 0:03:00]}  c5 {[%clk 0:02:59]} 4. b4 {[%clk 0:03:01]}  cxb4 {[%clk 0:02:58]} 5. d4 {[%clk 0:03:01]}  Nc6 {[%clk 0:02:57]} 6. a3 {[%clk 0:03:01]}  Qa5 {[%clk 0:02:54]} 7. Bd2 {[%clk 0:02:41]}  bxa3 {[%clk 0:02:53]} 8. Bxa5 {[%clk 0:02:36]}  Nxa5 {[%clk 0:02:45]} 9. Bb5+ {[%clk 0:02:28]}  Kd8 {[%clk 0:02:41]} 10. O-O {[%clk 0:02:15]}  b6 {[%clk 0:02:39]} 11. Nxa3 {[%clk 0:02:13]}  h6 {[%clk 0:02:35]} 12. c4 {[%clk 0:01:45]}  Bxa3 {[%clk 0:02:34]} 13. Rxa3 {[%clk 0:01:45]}  Nxc4 {[%clk 0:02:30]} 14. Bxc4 {[%clk 0:01:44]}  dxc4 {[%clk 0:02:31]} 15. Qa4 {[%clk 0:01:39]}  Ne7 {[%clk 0:02:20]} 16. Qxc4 {[%clk 0:01:32]}  Bb7 {[%clk 0:02:20]} 17. Nd2 {[%clk 0:01:14]}  Kd7 {[%clk 0:02:17]} 18. Qb5+ {[%clk 0:01:06]}  Bc6 {[%clk 0:02:15]} 19. Qb4 {[%clk 0:01:04]}  Rhd8 {[%clk 0:02:09]} 20. Rfa1 {[%clk 0:00:59]}  a5 {[%clk 0:01:50]} 21. Qxb6 {[%clk 0:00:57]}  a4 {[%clk 0:01:50]} 22. h3 {[%clk 0:00:51]}  Ke8 {[%clk 0:01:47]} 23. Nc4 {[%clk 0:00:49]}  Kf8 {[%clk 0:01:46]} 24. Nd6 {[%clk 0:00:49]}  Rdb8 {[%clk 0:01:40]} 25. Qc5 {[%clk 0:00:47]}  Kg8 {[%clk 0:01:32]} 26. f4 {[%clk 0:00:42]}  Ra6 {[%clk 0:01:29]} 27. g4 {[%clk 0:00:37]}  Nd5 {[%clk 0:01:26]} 28. f5 {[%clk 0:00:32]}  Bd7 {[%clk 0:01:26]} 29. fxe6 {[%clk 0:00:26]}  Bxe6 {[%clk 0:01:27]} 30. Qc4 {[%clk 0:00:17]}  Rab6 {[%clk 0:01:22]} 31. Qxa4 {[%clk 0:00:17]}  f6 {[%clk 0:01:17]} 32. Nc4 {[%clk 0:00:16]}  Rb4 {[%clk 0:01:15]} 33. Qc2 {[%clk 0:00:13]}  Nf4 {[%clk 0:01:12]} 34. Ra8 {[%clk 0:00:12]}  Bd5 {[%clk 0:01:04]} 35. Rxb8+ {[%clk 0:00:10]}  Rxb8 {[%clk 0:01:05]} 36. exf6 {[%clk 0:00:11]}  Rf8 {[%clk 0:00:58]} 37. fxg7 {[%clk 0:00:10]}  Nxh3+ {[%clk 0:00:55]} 38. Kh2 {[%clk 0:00:08]}  Rf2+ {[%clk 0:00:54]} 39. Qxf2 {[%clk 0:00:08]}  Nxf2 {[%clk 0:00:55]} 40. Ne5 {[%clk 0:00:07]}  Ne4 {[%clk 0:00:50]} 41. Ra7 {[%clk 0:00:06]}  Be6 {[%clk 0:00:46]} 42. Ng6 {[%clk 0:00:06]}  Bxg4 {[%clk 0:00:44]} 43. Ne7+ {[%clk 0:00:06]}  Kxg7 {[%clk 0:00:42]} 44. d5 {[%clk 0:00:03]}  Kf6 {[%clk 0:00:40]} 45. Nc6 {[%clk 0:00:02]}  h5 {[%clk 0:00:39]} 0-1


[Site "https://www.chess.com"]